[Event "*** Titled Tuesday 3|2 Blitz"]
[Site "Chess.com"]
[Date "2014.12.30"]
[Round "9"]
[White "Philofive"]
[Black "ChessWarrior7197"]
[Result "1/2-1/2"]
[WhiteElo "2271"]
[BlackElo "2025"]
[TimeControl "180+2"]
[EndTime "13:02:27 PST"]
[Termination "Game drawn by repetition"]

1. d4 {[%clk 0:02:57.8]} 1... Nf6 {[%clk 0:02:58.7]} 2. Bg5 {[%clk 0:02:57.9]}
2... Ne4 {[%clk 0:02:59.2]} 3. Bf4 {[%clk 0:02:58.5]} 3... d5 {[%clk 0:03:00.2]}
4. e3 {[%clk 0:02:59.2]} 4... g6 {[%clk 0:02:59.4]} 5. Bd3 {[%clk 0:02:59.1]}
5... Nf6 {[%clk 0:02:59.1]} 6. Nf3 {[%clk 0:02:55.2]} 6... Bg7 {[%clk 0:03:00]}
7. O-O {[%clk 0:02:56.7]} 7... O-O {[%clk 0:03:00.8]} 8. c4 {[%clk 0:02:57.9]}
8... Nbd7 {[%clk 0:02:57.6]} 9. Nc3 {[%clk 0:02:57.2]} 9... dxc4 {[%clk
0:02:54.9]} 10. Bxc4 {[%clk 0:02:58.3]} 10... Nb6 {[%clk 0:02:56.3]} 11. Be2
{[%clk 0:02:58.6]} 11... c6 {[%clk 0:02:57.1]} 12. Rc1 {[%clk 0:02:57.5]} 12...
Nbd5 {[%clk 0:02:51.8]} 13. Be5 {[%clk 0:02:56.9]} 13... Nxc3 {[%clk 0:02:50.7]}
14. bxc3 {[%clk 0:02:56.2]} 14... Ne4 {[%clk 0:02:51.6]} 15. Bxg7 {[%clk
0:02:55.9]} 15... Kxg7 {[%clk 0:02:52.1]} 16. Bd3 {[%clk 0:02:56.7]} 16... Nf6
{[%clk 0:02:48.1]} 17. Ne5 {[%clk 0:02:54.4]} 17... Be6 {[%clk 0:02:46.5]} 18.
Qc2 {[%clk 0:02:50.5]} 18... Qc7 {[%clk 0:02:47.3]} 19. Qb2 {[%clk 0:02:45.3]}
19... b6 {[%clk 0:02:44.6]} 20. c4 {[%clk 0:02:43]} 20... Rfd8 {[%clk
0:02:43.8]} 21. Rfd1 {[%clk 0:02:43.4]} 21... Rac8 {[%clk 0:02:42.9]} 22. h3
{[%clk 0:02:43.8]} 22... Kg8 {[%clk 0:02:42]} 23. Be2 {[%clk 0:02:43.3]} 23...
Nd7 {[%clk 0:02:36.1]} 24. Nd3 {[%clk 0:02:40.4]} 24... Bf5 {[%clk 0:02:34.4]}
25. Bf3 {[%clk 0:02:36.3]} 25... Bxd3 {[%clk 0:02:20]} 26. Rxd3 {[%clk
0:02:36.8]} 26... c5 {[%clk 0:02:21.5]} 27. Rcd1 {[%clk 0:01:56.6]} 27... cxd4
{[%clk 0:02:19.2]} 28. Rxd4 {[%clk 0:01:57.9]} 28... Nc5 {[%clk 0:02:16]} 29.
Bg4 {[%clk 0:01:50.7]} 29... e6 {[%clk 0:02:14.9]} 30. Be2 {[%clk 0:01:46.9]}
30... Nb7 {[%clk 0:01:57.8]} 31. h4 {[%clk 0:01:45.3]} 31... h5 {[%clk
0:01:56.3]} 32. Bf3 {[%clk 0:01:41.5]} 32... Na5 {[%clk 0:01:55]} 33. Be2 {[%clk
0:01:18.7]} 33... Rxd4 {[%clk 0:01:54.1]} 34. Rxd4 {[%clk 0:01:19.2]} 34... e5
{[%clk 0:01:55.1]} 35. Rd1 {[%clk 0:01:14.8]} 35... Nxc4 {[%clk 0:01:51.8]} 36.
Bxc4 {[%clk 0:01:13]} 36... Qxc4 {[%clk 0:01:51.9]} 37. Qxe5 {[%clk 0:01:13.8]}
37... Qxa2 {[%clk 0:01:52.4]} 38. Rd7 {[%clk 0:01:12]} 38... a5 {[%clk
0:01:42.8]} 39. g4 {[%clk 0:00:58.9]} 39... hxg4 {[%clk 0:01:31.5]} 40. h5
{[%clk 0:01:00.1]} 40... Qe6 {[%clk 0:01:19.2]} 41. Qxe6 {[%clk 0:00:58.5]}
41... fxe6 {[%clk 0:01:19.9]} 42. hxg6 {[%clk 0:01:00.2]} 42... a4 {[%clk
0:01:19.4]} 43. Ra7 {[%clk 0:00:58.7]} 43... b5 {[%clk 0:01:19]} 44. Kg2 {[%clk
0:00:53.4]} 44... Rc3 {[%clk 0:01:11.1]} 45. Kg3 {[%clk 0:00:51.4]} 45... Rc2
{[%clk 0:01:03.8]} 46. Ra5 {[%clk 0:00:48]} 46... Rb2 {[%clk 0:00:58.5]} 47.
Kxg4 {[%clk 0:00:46.9]} 47... Kg7 {[%clk 0:00:55.2]} 48. Kg5 {[%clk 0:00:47.7]}
48... Rxf2 {[%clk 0:00:55]} 49. Ra7+ {[%clk 0:00:38.9]} 49... Kg8 {[%clk
0:00:55]} 50. e4 {[%clk 0:00:40.1]} 50... e5 {[%clk 0:00:50.1]} 51. Rb7 {[%clk
0:00:30.9]} 51... a3 {[%clk 0:00:27.8]} 52. Rxb5 {[%clk 0:00:30.7]} 52... a2
{[%clk 0:00:28.4]} 53. Ra5 {[%clk 0:00:32]} 53... Kg7 {[%clk 0:00:28.8]} 54.
Ra7+ {[%clk 0:00:33]} 54... Kg8 {[%clk 0:00:29.6]} 55. Ra8+ {[%clk 0:00:34.4]}
55... Kg7 {[%clk 0:00:30]} 56. Ra7+ {[%clk 0:00:35.8]} 56... Kg8 {[%clk
0:00:31.3]} 57. Kh6 {[%clk 0:00:37.3]} 57... Rh2+ {[%clk 0:00:31.3]} 58. Kg5
{[%clk 0:00:38.4]} 58... Rf2 {[%clk 0:00:31.9]} 59. Ra8+ {[%clk 0:00:37.6]}
59... Kg7 {[%clk 0:00:32.6]} 60. Ra7+ {[%clk 0:00:39.2]} 60... Kg8 {[%clk
0:00:34]} 61. Ra5 {[%clk 0:00:40.1]} 61... Kg7 {[%clk 0:00:34.1]} 62. Ra8 {[%clk
0:00:35.4]} 62... Rg2+ {[%clk 0:00:24.1]} 63. Kf5 {[%clk 0:00:36.5]} 63... Rf2+
{[%clk 0:00:21]} 64. Kg5 {[%clk 0:00:26.7]} 64... Rg2+ {[%clk 0:00:20.9]} 65.
Kf5 {[%clk 0:00:27.9]} 65... Rf2+ {[%clk 0:00:22.2]} 66. Kg5 {[%clk 0:00:29]}
66... Rg2+ {[%clk 0:00:23.1]} 67. Kf5 {[%clk 0:00:30.4]} 67... Rf2+ {[%clk
0:00:24.5]} 68. Kg5 {[%clk 0:00:31.8]} 68... Rg2+ {[%clk 0:00:25.7]} 69. Kf5
{[%clk 0:00:33.3]} 69... Rf2+ {[%clk 0:00:26.9]} 70. Kg5 {[%clk 0:00:34.8]}
70... Rg2+ {[%clk 0:00:28.1]} 71. Kf5 {[%clk 0:00:36.3]} 71... Rf2+ {[%clk
0:00:29.3]} 72. Kg5 {[%clk 0:00:37.8]} 72... Rg2+ {[%clk 0:00:30.7]} 73. Kf5
{[%clk 0:00:39.3]} 73... Rf2+ {[%clk 0:00:32]} 74. Kg5 {[%clk 0:00:40.8]} 74...
Rg2+ {[%clk 0:00:33.2]} 75. Kf5 {[%clk 0:00:42.3]} 1/2-1/2

[Event "*** Titled Tuesday 3|2 Blitz"]
[Site "Chess.com"]
[Date "2014.12.30"]
[Round "9"]
[White "David_Klein"]
[Black "DARIO555"]
[Result "1-0"]
[WhiteElo "2346"]
[BlackElo "2197"]
[TimeControl "180+2"]
[EndTime "13:02:29 PST"]
[Termination "David_Klein won by resignation"]

1. g3 {[%clk 0:03:00]} 1... e5 {[%clk 0:02:57.6]} 2. Bg2 {[%clk 0:03:00.2]} 2...
Nc6 {[%clk 0:02:54.7]} 3. d3 {[%clk 0:02:56.2]} 3... Bc5 {[%clk 0:02:51.3]} 4.
Nf3 {[%clk 0:02:53.6]} 4... d6 {[%clk 0:02:51.4]} 5. h4 {[%clk 0:02:51.5]} 5...
Bg4 {[%clk 0:02:41.7]} 6. c3 {[%clk 0:02:51.8]} 6... Nge7 {[%clk 0:02:35.1]} 7.
Qa4 {[%clk 0:02:52.1]} 7... Bd7 {[%clk 0:02:30.8]} 8. Qc2 {[%clk 0:02:51.9]}
8... a6 {[%clk 0:02:31]} 9. Nbd2 {[%clk 0:02:52.6]} 9... Ba7 {[%clk 0:02:29.8]}
10. Ne4 {[%clk 0:02:53.6]} 10... h6 {[%clk 0:02:29.1]} 11. Be3 {[%clk
0:02:49.6]} 11... Bxe3 {[%clk 0:02:25.3]} 12. fxe3 {[%clk 0:02:51.5]} 12... Nf5
{[%clk 0:02:23.2]} 13. Qd2 {[%clk 0:02:39.6]} 13... d5 {[%clk 0:02:24.1]} 14.
Nc5 {[%clk 0:02:40.5]} 14... Nxg3 {[%clk 0:02:20.3]} 15. Rg1 {[%clk 0:02:41.5]}
15... b6 {[%clk 0:02:14.2]} 16. Nxd7 {[%clk 0:02:39.1]} 16... Qxd7 {[%clk
0:02:15.3]} 17. O-O-O {[%clk 0:02:39.7]} 17... O-O-O {[%clk 0:02:04.7]} 18. Qe1
{[%clk 0:02:24.8]} 18... Nh5 {[%clk 0:01:55.2]} 19. Nd2 {[%clk 0:02:21.5]} 19...
g6 {[%clk 0:01:39.3]} 20. c4 {[%clk 0:02:18.2]} 20... Ne7 {[%clk 0:01:36.2]} 21.
Kb1 {[%clk 0:02:17.7]} 21... f5 {[%clk 0:01:23.7]} 22. Rc1 {[%clk 0:02:16.5]}
22... e4 {[%clk 0:01:22.5]} 23. d4 {[%clk 0:02:15]} 23... Kb8 {[%clk 0:01:12]}
24. cxd5 {[%clk 0:02:14.4]} 24... Nxd5 {[%clk 0:01:11.8]} 25. Nc4 {[%clk
0:02:15.6]} 25... Qb5 {[%clk 0:01:05.1]} 26. Qd2 {[%clk 0:02:12.7]} 26... Nhf6
{[%clk 0:01:01.1]} 27. Bh3 {[%clk 0:02:11.9]} 27... Rhg8 {[%clk 0:00:59.3]} 28.
Ne5 {[%clk 0:02:12.6]} 28... Ne7 {[%clk 0:00:52.8]} 29. Qc2 {[%clk 0:02:06.9]}
29... Rc8 {[%clk 0:00:47.1]} 30. a4 {[%clk 0:01:52.3]} 30... Qe8 {[%clk
0:00:39.9]} 31. Qb3 {[%clk 0:01:48.4]} 31... a5 {[%clk 0:00:36.7]} 32. Rc4
{[%clk 0:01:47.3]} 32... g5 {[%clk 0:00:36.6]} 33. hxg5 {[%clk 0:01:47.9]} 33...
hxg5 {[%clk 0:00:37.7]} 34. Bg2 {[%clk 0:00:57.9]} 34... Nfd5 {[%clk 0:00:33.4]}
35. Rgc1 {[%clk 0:00:57.3]} 35... Rh8 {[%clk 0:00:25]} 36. Rc6 {[%clk
0:00:56.3]} 36... Rh2 {[%clk 0:00:20.4]} 37. Bf1 {[%clk 0:00:48.2]} 37... Rh1
{[%clk 0:00:20.8]} 38. Qb5 {[%clk 0:00:48.6]} 38... Kb7 {[%clk 0:00:20.5]} 39.
Qc4 {[%clk 0:00:32.4]} 39... Nxc6 {[%clk 0:00:20.5]} 40. Qxd5 {[%clk 0:00:32.4]}
40... Rd8 {[%clk 0:00:19.7]} 41. Qxc6+ {[%clk 0:00:28.3]} 41... Qxc6 {[%clk
0:00:20.7]} 42. Nxc6 {[%clk 0:00:30.2]} 42... Rxf1 {[%clk 0:00:21.6]} 43. Rxf1
{[%clk 0:00:30.4]} 43... Kxc6 {[%clk 0:00:22]} 44. Rxf5 {[%clk 0:00:31.3]} 44...
Rg8 {[%clk 0:00:23.6]} 45. Rf1 {[%clk 0:00:29.1]} 45... g4 {[%clk 0:00:24.2]}
46. Kc2 {[%clk 0:00:30.8]} 46... b5 {[%clk 0:00:24.6]} 47. Rf6+ {[%clk
0:00:30.3]} 47... Kb7 {[%clk 0:00:21.6]} 48. axb5 {[%clk 0:00:30.4]} 48... g3
{[%clk 0:00:23]} 49. Rf1 {[%clk 0:00:31.9]} 49... g2 {[%clk 0:00:23.4]} 50. Rg1
{[%clk 0:00:33]} 50... Kb6 {[%clk 0:00:25.3]} 51. Kc3 {[%clk 0:00:32.9]} 51...
Kxb5 {[%clk 0:00:26.7]} 52. Kb3 {[%clk 0:00:34.2]} 52... a4+ {[%clk 0:00:26.7]}
53. Kc3 {[%clk 0:00:35.6]} 53... c6 {[%clk 0:00:27.7]} 54. Kd2 {[%clk
0:00:34.6]} 54... Kb4 {[%clk 0:00:28.5]} 55. Kc1 {[%clk 0:00:36]} 55... Kb3
{[%clk 0:00:29.7]} 56. Kb1 {[%clk 0:00:37.2]} 56... Rg3 {[%clk 0:00:27.9]} 57.
Kc1 {[%clk 0:00:36.3]} 57... a3 {[%clk 0:00:26.1]} 58. bxa3 {[%clk 0:00:37]}
58... Kxa3 {[%clk 0:00:26.3]} 59. Kd2 {[%clk 0:00:37.5]} 59... Kb3 {[%clk
0:00:27.4]} 60. Ke1 {[%clk 0:00:38.2]} 60... Rxe3 {[%clk 0:00:26.6]} 61. Rxg2
{[%clk 0:00:39.1]} 61... Kc4 {[%clk 0:00:26.2]} 62. Rg6 {[%clk 0:00:40.3]} 62...
Kxd4 {[%clk 0:00:24.2]} 63. Rxc6 {[%clk 0:00:41]} 63... Ra3 {[%clk 0:00:24.7]}
64. Rc2 {[%clk 0:00:40.9]} 64... Ke3 {[%clk 0:00:24.2]} 65. Rc1 {[%clk
0:00:41.3]} 65... Rb3 {[%clk 0:00:23.4]} 66. Ra1 {[%clk 0:00:42]} 66... Kd4
{[%clk 0:00:23.4]} 67. Rd1+ {[%clk 0:00:42.5]} 67... Kc3 {[%clk 0:00:24.2]} 68.
Kf2 {[%clk 0:00:43.2]} 68... e3+ {[%clk 0:00:21.4]} 69. Kxe3 {[%clk 0:00:44.4]}
69... Kc2+ {[%clk 0:00:22.5]} 70. Rd3 {[%clk 0:00:45.7]} 70... Rb5 {[%clk
0:00:23.2]} 71. Rd8 {[%clk 0:00:42.2]} 71... Re5+ {[%clk 0:00:23.9]} 72. Kf3
{[%clk 0:00:43.4]} 72... Kc3 {[%clk 0:00:24.2]} 73. e4 {[%clk 0:00:44.1]} 73...
Kc4 {[%clk 0:00:25.8]} 74. Kf4 {[%clk 0:00:45.5]} 74... Ra5 {[%clk 0:00:26.3]}
75. e5 {[%clk 0:00:46.8]} 75... Ra1 {[%clk 0:00:27.6]} 76. Kf5 {[%clk
0:00:47.7]} 76... Rf1+ {[%clk 0:00:29]} 77. Ke6 {[%clk 0:00:49.1]} 77... Kc5
{[%clk 0:00:30.4]} 78. Ke7 {[%clk 0:00:49.7]} 78... Kc6 {[%clk 0:00:31]} 79. e6
{[%clk 0:00:51]} 79... Kc7 {[%clk 0:00:32.4]} 80. Rd2 {[%clk 0:00:52]} 80... Rf3
{[%clk 0:00:31.7]} 81. Ke8 {[%clk 0:00:52.9]} 81... Kc8 {[%clk 0:00:32.3]} 82.
e7 {[%clk 0:00:54]} 82... Rf1 {[%clk 0:00:33.1]} 83. Rc2+ {[%clk 0:00:54.2]}
83... Kb7 {[%clk 0:00:34.1]} 84. Rc4 {[%clk 0:00:54.2]} 84... Rd1 {[%clk
0:00:34.4]} 85. Kf7 {[%clk 0:00:55.2]} 85... Rf1+ {[%clk 0:00:35]} 86. Ke6
{[%clk 0:00:56.6]} 86... Re1+ {[%clk 0:00:35.8]} 87. Kf6 {[%clk 0:00:58.2]}
87... Rf1+ {[%clk 0:00:35]} 88. Ke5 {[%clk 0:00:59.2]} 88... Re1+ {[%clk
0:00:35.2]} 89. Re4 {[%clk 0:01:00.4]} 89... Rxe4+ {[%clk 0:00:33.9]} 1-0